fUST/lending_fUST_20240417
["ID","MTS","AMOUNT","RATE_DAILY","PERIOD"]
[322803796,1713333048469,-500.0,0.00076712,120]
[322803797,1713333048480,-500.0,0.00076712,120]
[322803798,1713333048490,-500.0,0.00076712,120]
[322803799,1713333048499,-500.0,0.00076712,120]
[322803800,1713333048509,-500.0,0.00076712,120]
[322803801,1713333048518,-500.0,0.00076712,120]
[322803802,1713333048528,-500.0,0.00076712,120]
[322803803,1713333048537,-500.0,0.00076712,120]
[322803804,1713333048546,-811.29,0.00076712,120]
[322803805,1713333048556,-151.0,0.00076712,120]
[322803806,1713333048565,-1224.79,0.00076712,120]
[322803807,1713333048575,-150.95011599,0.00076999,120]
[322803808,1713333048584,-1234.0,0.00077,120]
[322803809,1713333048594,-150.0,0.00077999,120]
[322803811,1713333048607,-157.593849,0.00078539,120]
[322803812,1713333048616,-254.817243,0.00079308,120]
[322803814,1713333048626,-625.12,0.00079452,120]
[322803818,1713333048637,-2066.852675,0.00079999,120]
[322803820,1713333048647,-2066.852675,0.00079999,120]
[322803822,1713333048656,-466.384024,0.00079999,120]
[322803824,1713333048666,-466.384024,0.00079999,120]
[322803826,1713333048677,-151.0,0.00079999,120]
[322803827,1713333048686,-151.0,0.00079999,120]
[322803828,1713333048696,-151.0,0.00079999,120]
[322803829,1713333048705,-1011.0,0.0008,120]
[322803830,1713333048714,-302.77330592,0.0008,105]
[322803831,1713333048723,-1792.664725,0.0008,120]
[322803832,1713333048733,-1011.0,0.00082,120]
[322803833,1713333048742,-500.0,0.00082191,120]
[322803834,1713333048751,-500.0,0.00082191,120]
[322803835,1713333048761,-500.0,0.00082191,120]
[322803836,1713333048770,-500.0,0.00082191,120]
[322803837,1713333048779,-500.0,0.00082191,120]
[322803838,1713333048788,-500.0,0.00082191,120]
[322803839,1713333048797,-503.87932198,0.00082191,120]
[322803840,1713333048807,-500.0,0.00082191,120]
[322803841,1713333048816,-500.0,0.00082191,120]
[322803842,1713333048826,-7591.79,0.00082191,120]
[322803843,1713333048835,-500.0,0.00082191,120]
[322803844,1713333048844,-500.0,0.00082191,120]
[322803845,1713333048853,-526.13929474,0.00082191,120]
[322803846,1713333048862,-500.0,0.00082191,120]
[322803847,1713333048872,-500.0,0.00082191,120]
[322803848,1713333048883,-502.28031022,0.00082191,120]
[322803849,1713333048892,-500.0,0.00082191,120]
[322803850,1713333048901,-500.0,0.00082191,120]
[322803851,1713333048911,-500.0,0.00082191,120]
[322803852,1713333048920,-500.0,0.00082191,120]
[322803853,1713333048930,-500.0,0.00082191,120]
[322803854,1713333048939,-500.0,0.00082191,120]
[322803855,1713333048948,-500.0,0.00082191,120]
[322803856,1713333048957,-500.0,0.00082191,120]
[322803857,1713333048966,-500.0,0.00082191,120]
[322803858,1713333048975,-500.0,0.00082191,120]
[322803859,1713333048985,-500.0,0.00082191,120]
[322803860,1713333048994,-500.0,0.00082191,120]
[322803861,1713333049004,-346.1687137,0.00082191,120]
[322803862,1713333049014,-500.0,0.00082191,120]
[322803863,1713333049023,-579.09,0.00082191,120]
[322803864,1713333049033,-500.0,0.00082191,120]
[322803865,1713333049042,-161.99256347,0.00082191,120]
[322803866,1713333049052,-500.0,0.00082191,120]
[322803867,1713333049061,-500.0,0.00082191,120]
[322803869,1713333049070,-500.0,0.00082191,120]
[322803871,1713333049079,-1749.94,0.00082191,120]
[322803873,1713333049088,-500.0,0.00082191,120]
[322803875,1713333049098,-516.15647373,0.00082191,120]
[322803876,1713333049107,-500.0,0.00082191,120]
[322803878,1713333049116,-500.0,0.00082191,120]
[322803879,1713333049125,-589.84879385,0.00082191,120]
[322803881,1713333049135,-500.0,0.00082191,120]
[322803883,1713333049145,-1000.0,0.00082191,120]
[322803884,1713333049154,-500.0,0.00082191,120]
[322803886,1713333049164,-547.94108531,0.00082191,120]
[322803887,1713333049173,-172.992695,0.00082191,120]
[322803888,1713333049182,-500.0,0.00082191,120]
[322803889,1713333049192,-172.992695,0.00082191,120]
[322803890,1713333049202,-500.0,0.00082191,120]
[322803891,1713333049211,-500.0,0.00082191,120]
[322803892,1713333049220,-500.0,0.00082191,120]
[322803893,1713333049230,-27989.2,0.00082191,120]
[322803894,1713333049240,-500.0,0.00082191,120]
[322803895,1713333049249,-583.93,0.00082191,120]
[322803896,1713333049259,-500.0,0.00082191,120]
[322803897,1713333049268,-7519.535238,0.00082191,120]
[322803898,1713333049277,-7519.535238,0.00082191,120]
[322803899,1713333049288,-500.0,0.00082191,120]
[322803900,1713333049298,-151.0,0.00082191,120]
[322803901,1713333049307,-500.0,0.00082191,7]
[322803902,1713333049317,-500.0,0.00082191,120]
[322803903,1713333049327,-21498.73,0.00082191,120]
[322803904,1713333049336,-500.0,0.00082191,120]
[322803905,1713333049346,-666.05,0.00082191,120]
[322803906,1713333049356,-1762.426907,0.00082191,120]
[322803907,1713333049365,-500.0,0.00082191,60]
[322803908,1713333049375,-1762.426907,0.00082191,120]
[322803909,1713333049385,-500.0,0.00082191,120]
[322803910,1713333049394,-621.1001105,0.00082191,120]
[322803911,1713333049404,-500.0,0.00082191,120]
[322803912,1713333049414,-5589.65,0.00082191,120]
[322803913,1713333049423,-500.0,0.00082191,120]
[322803914,1713333049433,-3817.42,0.00082191,120]
[322803915,1713333049443,-500.0,0.00082191,120]
[322803916,1713333049454,-525.04929274,0.00082191,120]
[322803917,1713333049463,-500.0,0.00082191,120]
[322803918,1713333049474,-816.55,0.00082191,120]
[322803919,1713333049488,-500.0,0.00082191,120]
[322803920,1713333049497,-500.0,0.00082191,120]
[322803921,1713333049506,-500.0,0.00082191,120]
[322803922,1713333049517,-215.67800416,0.00082191,120]
[322803923,1713333049526,-500.0,0.00082191,120]
[322803924,1713333049535,-500.0,0.00082191,120]
[322803925,1713333049544,-500.0,0.00082191,120]
[322803926,1713333049554,-500.0,0.00082191,120]
[322803927,1713333049562,-811.29,0.00082191,120]
[322803928,1713333049572,-1224.79,0.00082191,120]
[322803929,1713333049581,-164.36071,0.00082192,120]
[322803930,1713333049590,-1011.0,0.00084,120]
[322803931,1713333049601,-164.0,0.00084144,120]
[322803932,1713333049610,-254.817243,0.00085076,120]
[322803933,1713333049619,-157.593849,0.00085845,120]
[322803934,1713333049629,-1011.0,0.00086,120]
[322803935,1713333049641,-500.0,0.00087671,120]
[322803936,1713333049750,-560.94166554,0.00087671,120]
[322803937,1713333049759,-517.44383084,0.00087671,120]
[322803938,1713333049768,-506.44029002,0.00087671,120]
[322803939,1713333049777,-500.0,0.00087671,120]
[322803940,1713333049786,-500.0,0.00087671,120]
[322803941,1713333049796,-500.0,0.00087671,120]
[322803942,1713333049805,-7591.79,0.00087671,120]
[322803943,1713333049814,-500.0,0.00087671,120]
[322803944,1713333049823,-500.0,0.00087671,120]
[322803945,1713333049833,-543.92933449,0.00087671,120]
[322803946,1713333049841,-500.0,0.00087671,120]
[322803947,1713333049850,-537.601365,0.00087671,120]
[322803948,1713333049859,-500.0,0.00087671,120]
[322803949,1713333049868,-502.15884544,0.00087671,120]
[322803950,1713333049877,-500.0,0.00087671,120]
[322803951,1713333049886,-500.0,0.00087671,120]
[322803952,1713333049895,-500.0,0.00087671,120]
[322803953,1713333049904,-500.0,0.00087671,120]
[322803954,1713333049913,-500.0,0.00087671,120]
[322803955,1713333049922,-500.0,0.00087671,120]
[322803956,1713333049931,-500.0,0.00087671,120]
[322803957,1713333049944,-625.03025433,0.00087671,120]
[322803958,1713333049954,-334.35377348,0.00087671,120]
[322803959,1713333049963,-888.587281,0.00087671,120]
[322803960,1713333049972,-888.587281,0.00087671,120]
[322803961,1713333049981,-500.0,0.00087671,120]
[322803962,1713333049991,-579.09,0.00087671,120]
[322803963,1713333050000,-500.0,0.00087671,120]
[322803964,1713333050009,-500.0,0.00087671,120]
[322803965,1713333050018,-500.0,0.00087671,120]
[322803966,1713333050027,-796.910787,0.00087671,120]
[322803967,1713333050036,-1000.733791,0.00087671,120]
[322803968,1713333050045,-796.910787,0.00087671,120]
[322803969,1713333050054,-1000.733791,0.00087671,120]
[322803970,1713333050063,-218.25033309,0.00087671,120]
[322803971,1713333050072,-1749.94,0.00087671,120]
[322803972,1713333050081,-500.0,0.00087671,120]
[322803973,1713333050091,-500.0,0.00087671,120]
[322803974,1713333050100,-558.2355018,0.00087671,120]
[322803975,1713333050109,-500.0,0.00087671,120]
[322803976,1713333050119,-1000.0,0.00087671,120]
[322803977,1713333050128,-500.0,0.00087671,120]
[322803978,1713333050139,-500.0,0.00087671,120]
[322803979,1713333050148,-500.0,0.00087671,120]
[322803980,1713333050157,-500.0,0.00087671,120]
[322803981,1713333050166,-504.33648664,0.00087671,120]
[322803982,1713333050176,-27989.2,0.00087671,120]
[322803983,1713333050185,-154.06074712,0.00087671,120]
[322803984,1713333050194,-583.93,0.00087671,120]
[322803985,1713333050203,-500.0,0.00087671,120]
[322803986,1713333050212,-500.0,0.00087671,120]
[322803987,1713333050222,-500.0,0.00087671,7]
[322803988,1713333050230,-500.0,0.00087671,120]
[322803989,1713333050240,-21498.73,0.00087671,120]
[322803990,1713333050249,-500.0,0.00087671,120]
[322803991,1713333050258,-666.05,0.00087671,120]
[322803992,1713333050268,-500.0,0.00087671,60]
[322803993,1713333050277,-500.0,0.00087671,120]
[322803994,1713333050286,-500.0,0.00087671,120]
[322803995,1713333050296,-5589.65,0.00087671,120]
[322803996,1713333050305,-500.0,0.00087671,120]
[322803997,1713333050314,-3817.42,0.00087671,120]
[322803998,1713333050324,-553.2864821,0.00087671,120]
[322803999,1713333050334,-500.0,0.00087671,120]
[322804000,1713333050344,-816.55,0.00087671,120]
[322804001,1713333050353,-543.74111297,0.00087671,120]
[322804002,1713333050363,-500.0,0.00087671,120]
[322804003,1713333050373,-500.0,0.00087671,120]
[322804004,1713333050383,-633.61543277,0.00087671,120]
[322804005,1713333050393,-500.0,0.00087671,120]
[322804006,1713333050402,-500.0,0.00087671,120]
[322804007,1713333050411,-500.0,0.00087671,120]
[322804008,1713333050421,-811.29,0.00087671,120]
[322804009,1713333050430,-151.0,0.00087671,120]
[322804010,1713333050439,-1224.79,0.00087671,120]
[322804011,1713333050449,-1011.0,0.00088,120]
[322804012,1713333050458,-346.69326914,0.00088128,120]
[322804013,1713333050468,-164.0,0.00088351,120]
[322804014,1713333050477,-168.954828,0.00088366,2]
[322804015,1713333050486,-1011.0,0.0009,120]
[322804016,1713333050496,-254.817243,0.00090843,120]
[322804017,1713333050505,-1011.0,0.00092,120]
[322804018,1713333050515,-507.1399808,0.0009315,120]
[322804019,1713333050524,-504.40180254,0.0009315,120]
[322804020,1713333050534,-500.0,0.0009315,120]
[322804021,1713333050543,-500.0,0.0009315,120]
[322804022,1713333050552,-7591.79,0.0009315,120]
[322804023,1713333050562,-505.77937968,0.0009315,120]
[322804024,1713333050571,-500.0,0.0009315,120]
[322804025,1713333050580,-500.0,0.0009315,120]
[322804026,1713333050591,-500.0,0.0009315,120]
[322804027,1713333050602,-500.0,0.0009315,120]
[322804028,1713333050611,-500.0,0.0009315,120]
[322804029,1713333050620,-500.0,0.0009315,120]
[322804030,1713333050629,-500.0,0.0009315,120]
[322804031,1713333050641,-500.0,0.0009315,120]
[322804032,1713333050650,-500.0,0.0009315,120]
[322804033,1713333050660,-151.0,0.0009315,120]
[322804034,1713333050669,-151.0,0.0009315,120]
[322804035,1713333050679,-151.0,0.0009315,120]
[322804036,1713333050688,-500.0,0.0009315,120]
[322804037,1713333050698,-3302.301536,0.0009315,14]
[322804038,1713333050707,-3302.301536,0.0009315,14]
[322804039,1713333050716,-500.0,0.0009315,120]
[322804040,1713333050725,-579.09,0.0009315,120]
[322804041,1713333050734,-500.0,0.0009315,120]
[322804042,1713333050743,-500.0,0.0009315,120]
[322804043,1713333050753,-500.0,0.0009315,120]
[322804044,1713333050762,-1749.94,0.0009315,120]
[322804045,1713333050770,-500.0,0.0009315,120]
[322804046,1713333050779,-500.0,0.0009315,120]
[322804047,1713333050788,-500.0,0.0009315,120]
[322804048,1713333050798,-1000.0,0.0009315,120]
[322804049,1713333050807,-500.0,0.0009315,120]
[322804050,1713333050817,-500.0,0.0009315,120]
[322804051,1713333050827,-638.96579452,0.0009315,120]
[322804052,1713333050836,-500.0,0.0009315,120]
[322804053,1713333050845,-27989.2,0.0009315,120]
[322804054,1713333050855,-583.93,0.0009315,120]
[322804055,1713333050864,-500.0,0.0009315,120]
[322804056,1713333050873,-7519.535238,0.0009315,120]
[322804057,1713333050883,-7519.535238,0.0009315,120]
[322804058,1713333050892,-500.0,0.0009315,120]
[322804059,1713333050901,-151.0,0.0009315,120]
[322804060,1713333050911,-500.0,0.0009315,7]
[322804061,1713333050920,-500.0,0.0009315,120]
[322804062,1713333050929,-173.46619584,0.0009315,120]
[322804063,1713333050938,-21498.73,0.0009315,120]
[322804064,1713333050947,-666.05,0.0009315,120]
[322804065,1713333050957,-1762.426907,0.0009315,120]
[322804066,1713333050966,-500.0,0.0009315,60]
[322804067,1713333050976,-2066.852675,0.0009315,120]
[322804068,1713333050986,-1762.426907,0.0009315,120]
[322804069,1713333050995,-2066.852675,0.0009315,120]
[322804070,1713333051005,-500.0,0.0009315,120]
[322804071,1713333051014,-500.0,0.0009315,120]
[322804072,1713333051023,-5589.65,0.0009315,120]
[322804073,1713333051032,-500.0,0.0009315,120]
[322804074,1713333051041,-3817.42,0.0009315,120]
[322804075,1713333051050,-466.384024,0.0009315,120]
[322804076,1713333051059,-505.44658537,0.0009315,120]
[322804077,1713333051069,-466.384024,0.0009315,120]
[322804078,1713333051078,-151.0,0.0009315,120]
[322804079,1713333051088,-816.55,0.0009315,120]
[322804080,1713333051098,-151.0,0.0009315,120]
[322804081,1713333051107,-500.0,0.0009315,120]
[322804082,1713333051116,-500.0,0.0009315,120]
[322804083,1713333051126,-151.0,0.0009315,120]
[322804084,1713333051137,-500.0,0.0009315,120]
[322804085,1713333051146,-500.0,0.0009315,120]
[322804086,1713333051155,-500.0,0.0009315,120]
[322804087,1713333051164,-811.29,0.0009315,120]
[322804088,1713333051173,-1224.79,0.0009315,120]
[322804089,1713333051182,-177.928811,0.00093151,120]
[322804090,1713333051191,-157.593849,0.00093151,120]
[322804091,1713333051200,-1011.0,0.00094,120]
[322804092,1713333051209,-1000.0,0.00094223,120]
[322804093,1713333051219,-181.01898102,0.0009529,4]
[322804094,1713333051228,-500.0,0.0009589,120]
[322804095,1713333051238,-1011.0,0.00096,120]
[322804096,1713333051248,-254.817243,0.00096611,120]
[322804097,1713333051257,-1011.0,0.00098,120]
[322804098,1713333051267,-500.0,0.0009863,120]
[322804099,1713333051277,-500.0,0.0009863,120]
[322804100,1713333051287,-7591.79,0.0009863,120]
[322804101,1713333051296,-174.74900914,0.0009863,120]
[322804102,1713333051306,-500.0,0.0009863,120]
[322804103,1713333051316,-617.74231065,0.0009863,120]
[322804104,1713333051325,-311.98878824,0.0009863,120]
[322804105,1713333051335,-500.0,0.0009863,120]
[322804106,1713333051345,-500.0,0.0009863,120]
[322804107,1713333051355,-558.93975821,0.0009863,120]
[322804108,1713333051364,-500.0,0.0009863,120]
[322804109,1713333051373,-500.0,0.0009863,120]
[322804110,1713333051383,-500.0,0.0009863,120]
[322804111,1713333051393,-888.587281,0.0009863,120]
[322804112,1713333051403,-888.587281,0.0009863,120]
[322804113,1713333051413,-542.01330333,0.0009863,120]
[322804114,1713333051422,-579.09,0.0009863,120]
[322804115,1713333051432,-470.07691834,0.0009863,120]
[322804116,1713333051441,-500.0,0.0009863,120]
[322804117,1713333051451,-500.0,0.0009863,120]
[322804118,1713333051461,-796.910787,0.0009863,120]
[322804119,1713333051471,-1000.733791,0.0009863,120]
[322804120,1713333051481,-796.910787,0.0009863,120]
[322804121,1713333051490,-1000.733791,0.0009863,120]
[322804122,1713333051499,-1749.94,0.0009863,120]
[322804123,1713333051513,-500.0,0.0009863,120]
[322804124,1713333051522,-500.0,0.0009863,120]
[322804125,1713333051532,-500.0,0.0009863,120]
[322804126,1713333051543,-500.0,0.0009863,120]
[322804127,1713333051552,-172.992695,0.0009863,120]
[322804128,1713333051563,-482.43154373,0.0009863,120]
[322804129,1713333051572,-172.992695,0.0009863,120]
[322804130,1713333051582,-500.0,0.0009863,120]
[322804131,1713333051592,-27989.2,0.0009863,120]
[322804132,1713333051603,-583.93,0.0009863,120]
[322804133,1713333051613,-500.0,0.0009863,120]
[322804134,1713333051623,-500.0,0.0009863,120]
[322804135,1713333051633,-460.91377401,0.0009863,7]
[322804136,1713333051642,-500.0,0.0009863,120]
[322804137,1713333051663,-21498.73,0.0009863,120]
[322804138,1713333051673,-666.05,0.0009863,120]
[322804139,1713333051683,-500.0,0.0009863,60]
[322804140,1713333051692,-500.0,0.0009863,120]
[322804141,1713333051702,-513.19610182,0.0009863,120]
[322804142,1713333051712,-5589.65,0.0009863,120]
[322804143,1713333051721,-500.0,0.0009863,120]
[322804144,1713333051731,-3817.42,0.0009863,120]
[322804145,1713333051741,-816.55,0.0009863,120]
[322804146,1713333051751,-500.0,0.0009863,120]
[322804147,1713333051761,-500.0,0.0009863,120]
[322804148,1713333051832,-500.0,0.0009863,120]
[322804149,1713333051842,-500.0,0.0009863,120]
[322804150,1713333051851,-500.0,0.0009863,120]
[322804151,1713333051861,-811.29,0.0009863,120]
[322804152,1713333051875,-151.0,0.0009863,120]
[322804153,1713333051887,-1224.79,0.0009863,120]
[322804154,1713333051896,-6168.0,0.000988,120]
[322804155,1713333051905,-740.0404,0.000999,120]
[322804156,1713333051914,-500.0,0.001,120]
[322804157,1713333051924,-10000.0,0.001,120]
[322804158,1713333051933,-1011.0,0.001,120]
[322804159,1713333051942,-157.593849,0.00100457,120]
[322804160,1713333051952,-254.817243,0.00102379,120]
[322804161,1713333051961,-500.0,0.00104109,120]
[322804162,1713333051972,-286.89508963,0.00104109,120]
[322804163,1713333051981,-7591.79,0.00104109,120]
[322804164,1713333051990,-383.70493109,0.00104109,120]
[322804165,1713333052000,-500.0,0.00104109,120]
[322804166,1713333052009,-500.0,0.00104109,120]
[322804167,1713333052019,-500.0,0.00104109,120]
[322804168,1713333052027,-500.0,0.00104109,120]
[322804169,1713333052037,-224.84858556,0.00104109,120]
[322804170,1713333052046,-579.09,0.00104109,120]
[322804171,1713333052055,-500.0,0.00104109,120]
[322804172,1713333052064,-538.95896587,0.00104109,120]
[322804173,1713333052073,-505.41202031,0.00104109,120]
[322804174,1713333052082,-1749.94,0.00104109,120]
[322804175,1713333052091,-212.7326785,0.00104109,120]
[322804176,1713333052100,-500.0,0.00104109,120]
[322804177,1713333052109,-500.0,0.00104109,120]
[322804178,1713333052118,-500.0,0.00104109,120]
[322804179,1713333052126,-27989.2,0.00104109,120]
[322804180,1713333052136,-583.93,0.00104109,120]
[322804181,1713333052145,-500.0,0.00104109,120]
[322804182,1713333052154,-500.0,0.00104109,120]
[322804183,1713333052163,-21498.73,0.00104109,120]
[322804184,1713333052172,-500.0,0.00104109,120]
[322804185,1713333052181,-666.05,0.00104109,120]
[322804186,1713333052190,-213.18538166,0.00104109,60]
[322804187,1713333052199,-2066.852675,0.00104109,120]
[322804188,1713333052209,-2066.852675,0.00104109,120]
[322804189,1713333052218,-500.0,0.00104109,120]
[322804190,1713333052227,-5589.65,0.00104109,120]
[322804191,1713333052237,-500.0,0.00104109,120]
[322804192,1713333052246,-3817.42,0.00104109,120]
[322804193,1713333052255,-466.384024,0.00104109,120]
[322804194,1713333052265,-466.384024,0.00104109,120]
[322804195,1713333052274,-151.0,0.00104109,120]
[322804196,1713333052283,-816.55,0.00104109,120]
[322804197,1713333052293,-151.0,0.00104109,120]
[322804198,1713333052302,-447.58821701,0.00104109,120]
[322804199,1713333052311,-500.0,0.00104109,120]
[322804200,1713333052320,-151.0,0.00104109,120]
[322804201,1713333052330,-500.0,0.00104109,120]
[322804202,1713333052339,-500.0,0.00104109,120]
[322804203,1713333052348,-500.0,0.00104109,120]
[322804204,1713333052357,-811.29,0.00104109,120]
[322804205,1713333052366,-1224.79,0.00104109,120]
[322804206,1713333052375,-157.593849,0.00107763,120]
[322804207,1713333052386,-254.817243,0.00108147,120]
[322804208,1713333052395,-500.0,0.00109589,120]
[322804209,1713333052403,-233.08020645,0.00109589,120]
[322804210,1713333052413,-7591.79,0.00109589,120]
[322804211,1713333052422,-500.0,0.00109589,120]
[322804212,1713333052431,-500.0,0.00109589,120]
[322804213,1713333052441,-500.0,0.00109589,120]
[322804214,1713333052450,-500.0,0.00109589,120]
[322804215,1713333052459,-579.09,0.00109589,120]
[322804216,1713333052469,-500.0,0.00109589,120]
[322804217,1713333052478,-1749.94,0.00109589,120]
[322804218,1713333052487,-500.0,0.00109589,120]
[322804219,1713333052497,-500.0,0.00109589,120]
[322804220,1713333052506,-500.0,0.00109589,120]
[322804221,1713333052516,-27989.2,0.00109589,120]
[322804222,1713333052525,-583.93,0.00109589,120]
[322804223,1713333052534,-500.0,0.00109589,120]
[322804224,1713333052543,-7519.535238,0.00109589,120]
[322804225,1713333052552,-7519.535238,0.00109589,120]
[322804226,1713333052561,-500.0,0.00109589,120]
[322804227,1713333052570,-151.0,0.00109589,120]
[322804228,1713333052579,-21498.73,0.00109589,120]
[322804229,1713333052589,-500.0,0.00109589,120]
[322804230,1713333052599,-666.05,0.00109589,120]
[322804231,1713333052610,-1762.426907,0.00109589,120]
[322804232,1713333052620,-1762.426907,0.00109589,120]
[322804233,1713333052629,-500.0,0.00109589,120]
[322804234,1713333052640,-5589.65,0.00109589,120]
[322804235,1713333052650,-500.0,0.00109589,120]
[322804236,1713333052658,-3817.42,0.00109589,120]
[322804237,1713333052668,-816.55,0.00109589,120]
[322804238,1713333052678,-500.0,0.00109589,120]
[322804239,1713333052687,-500.0,0.00109589,120]
[322804240,1713333052697,-500.0,0.00109589,120]
[322804241,1713333052706,-500.0,0.00109589,120]
[322804242,1713333052715,-811.29,0.00109589,120]
[322804243,1713333052725,-1224.79,0.00109589,120]
[322804244,1713333052734,-1011.0,0.0011,120]
[322804245,1713333052743,-254.817243,0.00113915,120]
[322804246,1713333052752,-7591.79,0.00115068,120]
[322804247,1713333052762,-218.97482667,0.00115068,120]
[322804248,1713333052771,-500.0,0.00115068,120]
[322804249,1713333052780,-500.0,0.00115068,120]
[322804250,1713333052790,-888.587281,0.00115068,120]
[322804251,1713333052799,-888.587281,0.00115068,120]
[322804252,1713333052808,-579.09,0.00115068,120]
[322804253,1713333052817,-489.32423454,0.00115068,120]
[322804254,1713333052827,-796.910787,0.00115068,120]
[322804255,1713333052836,-1000.733791,0.00115068,120]
[322804256,1713333052845,-796.910787,0.00115068,120]
[322804257,1713333052854,-1000.733791,0.00115068,120]
[322804258,1713333052864,-1749.94,0.00115068,120]
[322804259,1713333052873,-593.52209139,0.00115068,120]
[322804260,1713333052882,-500.0,0.00115068,120]
[322804261,1713333052893,-172.992695,0.00115068,120]
[322804262,1713333052903,-172.992695,0.00115068,120]
[322804263,1713333052912,-500.0,0.00115068,120]
[322804264,1713333052922,-27989.2,0.00115068,120]
[322804265,1713333052931,-583.93,0.00115068,120]
[322804266,1713333052941,-500.0,0.00115068,120]
[322804267,1713333052950,-500.0,0.00115068,120]
[322804268,1713333052959,-21498.73,0.00115068,120]
[322804269,1713333052969,-500.0,0.00115068,120]
[322804270,1713333052978,-666.05,0.00115068,120]
[322804271,1713333052987,-500.0,0.00115068,120]
[322804272,1713333052996,-5589.65,0.00115068,120]
[322804273,1713333053006,-500.0,0.00115068,120]
[322804274,1713333053015,-3817.42,0.00115068,120]
[322804275,1713333053025,-816.55,0.00115068,120]
[322804276,1713333053034,-226.32865411,0.00115068,120]
[322804277,1713333053043,-304.28221365,0.00115068,120]
[322804278,1713333053053,-500.0,0.00115068,120]
[322804279,1713333053062,-500.0,0.00115068,120]
[322804280,1713333053071,-811.29,0.00115068,120]
[322804281,1713333053080,-151.0,0.00115068,120]
[322804282,1713333053090,-1224.79,0.00115068,120]
[322804283,1713333053099,-177.928811,0.00115068,120]
[322804284,1713333053108,-157.593849,0.00115069,120]
[322804285,1713333053117,-254.817243,0.00119683,120]
[322804286,1713333053127,-1011.0,0.0012,120]
[322804287,1713333053137,-7591.79,0.00120547,120]
[322804288,1713333053146,-500.0,0.00120547,120]
[322804289,1713333053155,-500.0,0.00120547,120]
[322804290,1713333053164,-151.0,0.00120547,120]
[322804291,1713333053173,-151.0,0.00120547,120]
[322804292,1713333053182,-151.0,0.00120547,120]
[322804293,1713333053191,-3302.301536,0.00120547,14]
[322804294,1713333053200,-3302.301536,0.00120547,14]
[322804295,1713333053209,-579.09,0.00120547,120]
[322804296,1713333053218,-1749.94,0.00120547,120]
[322804297,1713333053228,-500.0,0.00120547,120]
[322804298,1713333053237,-370.25714789,0.00120547,120]
[322804299,1713333053247,-27989.2,0.00120547,120]
[322804300,1713333053257,-583.93,0.00120547,120]
[322804301,1713333053267,-500.0,0.00120547,120]
[322804302,1713333053276,-500.0,0.00120547,120]
[322804303,1713333053285,-21498.73,0.00120547,120]
[322804304,1713333053295,-500.0,0.00120547,120]
[322804305,1713333053305,-666.05,0.00120547,120]
[322804306,1713333053315,-2066.852675,0.00120547,120]
[322804307,1713333053326,-2066.852675,0.00120547,120]
[322804308,1713333053338,-445.28938482,0.00120547,120]
[322804309,1713333053348,-5589.65,0.00120547,120]
[322804310,1713333053358,-483.03515042,0.00120547,120]
[322804311,1713333053367,-3817.42,0.00120547,120]
[322804312,1713333053377,-466.384024,0.00120547,120]